bitfinex/quotes_BTCUSD_20250529
["timestamp","ask_amount","ask_price","bid_price","bid_amount"]
[1748507846596,0.26449544,108230.0,108220.0,0.43381151]
[1748507846857,0.26449544,108230.0,108220.0,0.9737612]
[1748507847034,0.26449544,108230.0,108220.0,0.7915618]
[1748507847258,0.26436235,108230.0,108220.0,0.7367618]
[1748507847466,0.26436235,108230.0,108220.0,0.7367582]
[1748507847686,0.26436235,108230.0,108220.0,0.72817509]
[1748507847895,0.26436235,108230.0,108220.0,0.73675851]
[1748507848133,0.26436235,108230.0,108220.0,0.75523851]
[1748507848356,0.26436235,108230.0,108220.0,0.73675849]
[1748507848989,0.26436235,108230.0,108220.0,0.7177591]
[1748507849443,0.26436235,108230.0,108220.0,0.72634335]
[1748507849683,0.26436235,108230.0,108220.0,0.7177591]
[1748507850587,0.26436235,108230.0,108220.0,0.72634302]
[1748507850787,0.26436235,108230.0,108220.0,0.7177591]
[1748507851700,0.26436235,108230.0,108220.0,0.71776012]
[1748507851929,0.26436235,108230.0,108220.0,0.71772012]
[1748507852353,0.26436235,108230.0,108220.0,0.72630512]
[1748507852561,0.24436235,108230.0,108220.0,0.71772012]
[1748507852783,0.24436235,108230.0,108220.0,0.72630538]
[1748507853001,0.24436235,108230.0,108220.0,0.7177206]
[1748507853614,0.24436235,108230.0,108220.0,0.72630535]
[1748507854245,0.24436235,108230.0,108220.0,0.7262653]
[1748507854504,0.24436235,108230.0,108220.0,0.72626535]
[1748507854688,0.24436235,108230.0,108220.0,0.7176806]
[1748507856152,0.24436235,108230.0,108220.0,0.72626462]
[1748507856363,0.24436235,108230.0,108220.0,0.7176806]
[1748507856571,0.24436235,108230.0,108220.0,0.72626461]
[1748507856778,0.24436235,108230.0,108220.0,0.7176806]
[1748507857007,0.24436235,108230.0,108220.0,0.72626462]
[1748507857194,0.24436235,108230.0,108220.0,0.72626432]
[1748507857735,0.24436235,108230.0,108220.0,0.72626431]
[1748507857942,0.24436235,108230.0,108220.0,0.4259227]
[1748507858156,0.24436235,108230.0,108220.0,0.7637923]
[1748507858374,0.24436235,108230.0,108220.0,0.76379268]
[1748507859305,0.24436235,108230.0,108220.0,0.76379273]
[1748507859743,0.2,108230.0,108220.0,0.76379273]
[1748507859951,0.38479164,108230.0,108220.0,0.76379273]
[1748507860361,0.38479164,108230.0,108220.0,0.76379284]
[1748507860565,0.38479164,108230.0,108220.0,0.76379292]
[1748507860796,0.38479164,108230.0,108220.0,0.76379328]
[1748507861084,0.38479164,108230.0,108220.0,0.7552087]
[1748507861295,0.38479164,108230.0,108220.0,0.76379298]
[1748507861503,0.3823431,108230.0,108220.0,0.76379298]
[1748507862360,0.3823431,108230.0,108220.0,0.42592307]
[1748507862361,0.38221901,108230.0,108220.0,0.42592307]
[1748507862579,0.38221901,108230.0,108220.0,0.76379268]
[1748507862787,0.38221901,108230.0,108220.0,0.76379269]
[1748507862995,0.38221901,108230.0,108220.0,0.7552087]
[1748507863198,0.38221901,108230.0,108220.0,0.76379305]
[1748507864054,0.38221901,108230.0,108220.0,0.7552087]
[1748507864269,0.38221901,108230.0,108220.0,0.47695336]
[1748507864479,0.38221901,108230.0,108220.0,0.76375337]
[1748507864721,0.38221901,108230.0,108220.0,0.76375344]
[1748507864931,0.38221901,108230.0,108220.0,0.76375376]
[1748507865140,0.37507577,108230.0,108220.0,0.42588416]
[1748507865354,0.37507577,108230.0,108220.0,0.77416332]
[1748507865782,0.37507577,108230.0,108220.0,0.77416363]
[1748507865994,0.37507577,108230.0,108220.0,0.77416362]
[1748507866644,0.37507577,108230.0,108220.0,0.77416363]
[1748507866867,0.35507577,108230.0,108220.0,0.77416363]
[1748507867073,0.35507577,108230.0,108220.0,0.77416392]
[1748507867750,0.35507577,108230.0,108220.0,0.77416411]
[1748507867958,0.35507577,108230.0,108220.0,0.76375455]
[1748507868161,0.35507577,108230.0,108220.0,0.76375445]
[1748507868373,0.35507577,108230.0,108220.0,0.76375533]
[1748507868590,0.35507577,108230.0,108220.0,0.75516874]
[1748507868798,0.35507577,108230.0,108220.0,0.76375533]
[1748507870334,0.35507577,108230.0,108220.0,0.76375579]
[1748507871341,0.35507577,108230.0,108220.0,0.763757]
[1748507871798,0.35507577,108230.0,108220.0,0.7637574]
[1748507872262,0.35507577,108230.0,108220.0,0.75516995]
[1748507872506,0.35507577,108230.0,108220.0,0.7637574]
[1748507872723,0.35507577,108230.0,108220.0,0.76375758]
[1748507872972,0.35507577,108230.0,108220.0,0.76375759]
[1748507873726,0.35507577,108230.0,108220.0,0.76375758]
[1748507873955,0.35507577,108230.0,108220.0,0.76375774]
[1748507874396,0.35507577,108230.0,108220.0,0.76376963]
[1748507874611,0.33507577,108230.0,108220.0,0.76376963]
[1748507875460,0.33507577,108230.0,108220.0,0.76377096]
[1748507875878,0.33507577,108230.0,108220.0,0.75518185]
[1748507876083,0.33507577,108230.0,108220.0,0.76377271]
[1748507876299,0.33507577,108230.0,108220.0,0.76357282]
[1748507877138,0.33507577,108230.0,108220.0,0.75498185]
[1748507877355,0.33507577,108230.0,108220.0,0.76357705]
[1748507877800,0.33507577,108230.0,108220.0,0.75498847]
[1748507878240,0.33507577,108230.0,108220.0,0.76358362]
[1748507878455,0.33507577,108230.0,108220.0,0.78077431]
[1748507879076,0.33507577,108230.0,108220.0,0.76358362]
[1748507879249,0.33507577,108230.0,108220.0,0.78077519]
[1748507879416,0.33507577,108230.0,108220.0,0.75498847]
[1748507879815,0.33507577,108230.0,108220.0,0.77217967]
[1748507880018,0.33507577,108230.0,108220.0,0.37918847]
[1748507880275,0.33507577,108230.0,108220.0,0.76354407]
[1748507880469,0.33507577,108230.0,108220.0,0.75494847]
[1748507880876,0.33507577,108230.0,108220.0,0.75494877]
[1748507881262,0.33507577,108230.0,108220.0,0.75494878]
[1748507881468,0.33507577,108230.0,108220.0,0.46826878]
[1748507881683,0.31507577,108230.0,108220.0,0.77213997]
[1748507881887,0.31507577,108230.0,108220.0,0.76333534]
[1748507882098,0.31507577,108230.0,108220.0,0.75473974]
[1748507882302,0.34337577,108230.0,108220.0,0.78052657]
[1748507882506,0.34337577,108230.0,108220.0,0.75473974]
[1748507883324,0.31507577,108230.0,108220.0,0.75473974]
[1748507883878,0.31507577,108230.0,108220.0,0.76333742]
[1748507884056,0.31507577,108230.0,108220.0,0.75473974]
[1748507884248,0.31507577,108230.0,108220.0,0.76333814]
[1748507884451,0.31507577,108230.0,108220.0,0.75473974]
[1748507884648,0.31507577,108230.0,108220.0,0.77193656]
[1748507884844,0.31507577,108230.0,108220.0,0.77193845]
[1748507885060,0.31507577,108230.0,108220.0,0.75474165]
[1748507885281,0.31507577,108230.0,108220.0,0.76334002]
[1748507885565,0.31507577,108230.0,108220.0,0.75474165]
[1748507886496,0.31507577,108230.0,108220.0,0.77193845]
[1748507886971,0.31507577,108230.0,108220.0,0.76334003]
[1748507887175,0.31507577,108230.0,108220.0,0.75474165]
[1748507888012,0.31507577,108230.0,108220.0,0.78053669]
[1748507888214,0.31507577,108230.0,108220.0,0.75474165]
[1748507888621,0.29507577,108230.0,108220.0,0.40477679]
[1748507888828,0.29507577,108230.0,108220.0,0.75454165]
[1748507889056,0.29507577,108230.0,108220.0,0.77173825]
[1748507889261,0.29507577,108230.0,108220.0,0.75454165]
[1748507889923,0.29507577,108230.0,108220.0,0.76313998]
[1748507890126,0.29507577,108230.0,108220.0,0.77173831]
[1748507890345,0.29507577,108230.0,108220.0,0.76313999]
[1748507890530,0.29507577,108230.0,108220.0,0.76313997]
[1748507890663,0.29507577,108230.0,108220.0,0.75454165]
[1748507890864,0.29507577,108230.0,108220.0,0.77173828]
[1748507891271,0.29507577,108230.0,108220.0,0.78033656]
[1748507891710,0.29507577,108230.0,108220.0,0.78033629]
[1748507891917,0.29507577,108230.0,108220.0,0.75454165]
[1748507892115,0.29507577,108230.0,108220.0,0.76313982]
[1748507892316,0.29507577,108230.0,108220.0,0.75454165]
[1748507892523,0.29507577,108230.0,108220.0,0.76313982]
[1748507892756,0.29507577,108230.0,108220.0,0.75454165]
[1748507892929,0.29507577,108230.0,108220.0,0.76313978]
[1748507893140,0.29507577,108230.0,108220.0,0.77173793]
[1748507893344,0.29507577,108230.0,108220.0,0.75454165]
[1748507893550,0.29507577,108230.0,108220.0,0.75454148]
[1748507893788,0.29507577,108230.0,108220.0,0.76313958]
[1748507893988,0.29507577,108230.0,108220.0,0.75454148]
[1748507894349,0.29507577,108230.0,108220.0,0.76313958]
[1748507894527,0.29507577,108230.0,108220.0,0.75454148]
[1748507895122,0.29507577,108230.0,108220.0,0.76313955]
[1748507895359,0.29507577,108230.0,108220.0,0.75454148]
[1748507895568,0.29507577,108230.0,108220.0,0.771738]
[1748507895780,0.27507577,108230.0,108220.0,0.75454148]
[1748507895984,0.27493067,108230.0,108220.0,0.75454148]
[1748507897648,0.27493067,108230.0,108220.0,0.77173791]
[1748507897874,0.27493067,108230.0,108220.0,0.74828641]
[1748507898092,0.27493067,108230.0,108220.0,0.77244947]
[1748507898307,0.27493067,108230.0,108220.0,0.76385125]
[1748507898747,0.27493067,108230.0,108220.0,0.77244939]
[1748507898963,0.27493067,108230.0,108220.0,0.78964562]
[1748507899420,0.27493067,108230.0,108220.0,0.78964555]
[1748507899641,0.27493067,108230.0,108220.0,0.78964553]
[1748507899846,0.27493067,108230.0,108220.0,0.78964402]
[1748507900267,0.27493067,108230.0,108220.0,0.7896433]
[1748507901460,0.27493067,108230.0,108220.0,0.78956189]
[1748507901664,0.27493067,108230.0,108220.0,0.41408189]
[1748507901875,0.27493067,108230.0,108220.0,0.41408192]
[1748507902082,0.27493067,108230.0,108220.0,0.78330717]
[1748507902290,0.27493067,108230.0,108220.0,0.78956147]
[1748507902707,0.27493067,108230.0,108220.0,0.78096476]
[1748507902917,0.25493067,108230.0,108220.0,0.78956109]
[1748507903554,0.25478957,108230.0,108220.0,0.78956097]
[1748507903758,0.25478957,108230.0,108220.0,0.78956069]
[1748507903957,0.25478957,108230.0,108220.0,0.78956071]
[1748507904842,0.25478957,108230.0,108220.0,0.78956093]
[1748507905050,0.25478957,108230.0,108220.0,0.78956175]
[1748507905472,0.25478957,108230.0,108220.0,0.78956176]
[1748507905695,0.25478957,108230.0,108220.0,0.76377099]
[1748507905928,0.25478957,108230.0,108220.0,0.78956175]
[1748507906148,0.25478957,108230.0,108220.0,0.78956294]
[1748507906596,0.25478957,108230.0,108220.0,0.78956305]
[1748507906847,0.25478957,108230.0,108220.0,0.78956298]
[1748507907278,0.25478957,108230.0,108220.0,0.78956297]
[1748507907493,0.25478957,108230.0,108220.0,0.76377112]
[1748507907714,0.25478957,108230.0,108220.0,0.78956299]
[1748507908112,0.25478957,108230.0,108220.0,0.78956304]
[1748507908585,0.25478957,108230.0,108220.0,0.78956323]
[1748507909255,0.24846523,108230.0,108220.0,0.78956323]
[1748507909478,0.24846523,108230.0,108220.0,0.78956328]
[1748507909690,0.24846523,108230.0,108220.0,0.7802533]
[1748507909890,0.22846523,108230.0,108220.0,0.7802533]
[1748507910353,0.22846523,108230.0,108220.0,0.75446101]
[1748507910592,0.22846523,108230.0,108220.0,0.75446103]
[1748507910794,0.22846523,108230.0,108220.0,0.78025342]
[1748507910997,0.22846523,108230.0,108220.0,0.40477342]
[1748507911188,0.22846523,108230.0,108220.0,0.78017351]
[1748507911431,0.22846523,108230.0,108220.0,0.77157605]
[1748507911645,0.22846523,108230.0,108220.0,0.78017357]
[1748507912090,0.22846523,108230.0,108220.0,0.44229207]
[1748507912307,0.22846523,108230.0,108220.0,0.44229232]
[1748507912521,0.22846523,108230.0,108220.0,0.06689243]
[1748507912745,0.22846523,108230.0,108220.0,0.44229243]
[1748507913184,0.22846523,108230.0,108220.0,0.42509716]
[1748507913398,0.22846523,108230.0,108220.0,0.44229258]
[1748507914023,0.22846523,108230.0,108220.0,0.44229269]
[1748507914228,0.22846523,108230.0,108220.0,0.78017419]
[1748507914433,0.22846523,108230.0,108220.0,0.77157647]
[1748507914642,0.22846523,108230.0,108220.0,0.78017419]
[1748507914851,0.22846523,108230.0,108220.0,0.76297885]
[1748507915069,0.22846523,108230.0,108220.0,0.78017437]
[1748507915459,0.22846523,108230.0,108220.0,0.75438109]
[1748507915721,0.22846523,108230.0,108220.0,0.78017437]
[1748507916231,0.22846523,108230.0,108220.0,0.78017443]
[1748507916451,0.22846523,108230.0,108220.0,0.75434109]
[1748507916659,0.22846523,108230.0,108220.0,0.78013446]
[1748507917097,0.20846523,108230.0,108220.0,0.42505738]
[1748507917309,0.20846523,108230.0,108220.0,0.44225305]
[1748507917735,0.20846523,108230.0,108220.0,0.44225308]
[1748507918158,0.20846523,108230.0,108220.0,0.44225314]
[1748507918844,0.20846523,108230.0,108220.0,0.4422532]
[1748507919055,0.20846523,108230.0,108220.0,0.41645965]
[1748507919268,0.20846523,108230.0,108220.0,0.44225326]
[1748507919928,0.20846523,108230.0,108220.0,0.44225333]
[1748507920360,0.20846523,108230.0,108220.0,0.41645965]
[1748507920567,0.20846523,108230.0,108220.0,0.44225336]
[1748507921654,0.20846523,108230.0,108220.0,0.41645965]
[1748507921888,0.20846523,108230.0,108220.0,0.44225342]
[1748507922315,0.20846523,108230.0,108220.0,0.41645965]
[1748507922531,0.20846523,108230.0,108220.0,0.44225348]
[1748507923632,0.20846523,108230.0,108220.0,0.44225513]
[1748507924051,0.18846523,108230.0,108220.0,0.44225513]
[1748507924263,0.18846523,108230.0,108220.0,0.41645965]
[1748507924488,0.18846523,108230.0,108220.0,0.44225486]
[1748507925204,0.18846523,108230.0,108220.0,0.44225485]
[1748507925652,0.18846523,108230.0,108220.0,0.44225486]
[1748507925994,0.18846523,108230.0,108220.0,0.44225497]
[1748507926455,0.58164673,108230.0,108220.0,0.13853809]
[1748507926635,0.58164673,108230.0,108220.0,0.45252403]
[1748507926844,0.24376523,108230.0,108220.0,0.45252174]
[1748507927053,0.58164673,108230.0,108220.0,0.45252174]
[1748507927482,0.24376523,108230.0,108220.0,0.42672787]
[1748507927715,0.24376523,108230.0,108220.0,0.45252314]
[1748507927936,0.24376523,108230.0,108220.0,0.45252315]
[1748507928358,0.24376523,108230.0,108220.0,0.4525214]
[1748507928802,0.24376523,108230.0,108220.0,0.45251456]
[1748507929012,0.24376523,108230.0,108220.0,0.43532343]
[1748507929435,0.24376523,108230.0,108220.0,0.45251456]
[1748507929637,0.24376523,108230.0,108220.0,0.45251429]
[1748507929747,0.24376523,108230.0,108220.0,0.43532334]
[1748507929955,0.24376523,108230.0,108220.0,0.45251429]
[1748507930557,0.24376523,108230.0,108220.0,0.46032735]
[1748507930753,0.24376523,108230.0,108220.0,0.46032654]
[1748507930962,0.24376523,108230.0,108220.0,0.46032492]
[1748507931207,0.24376523,108230.0,108220.0,0.44313723]
[1748507931425,0.22376523,108230.0,108220.0,0.42672787]
[1748507931640,0.22376523,108230.0,108220.0,0.43454279]
[1748507931849,0.22376523,108230.0,108220.0,0.45173034]
[1748507932063,0.22376523,108230.0,108220.0,0.77242429]
[1748507932262,0.22376523,108230.0,108220.0,0.46032455]
[1748507932479,0.22376523,108230.0,108220.0,0.46032447]
[1748507933112,0.22376523,108230.0,108220.0,0.46032254]
[1748507933323,0.22376523,108230.0,108220.0,0.4517293]
[1748507933531,0.22376523,108230.0,108220.0,0.46032255]
[1748507934141,0.21669621,108230.0,108220.0,1.46032255]
[1748507934351,0.21669621,108230.0,108220.0,1.46024255]
[1748507934768,0.21669621,108230.0,108220.0,1.46023981]
[1748507934973,0.21669621,108230.0,108220.0,1.46023979]
[1748507935183,0.21669621,108230.0,108220.0,1.46023978]
[1748507936665,0.21669621,108230.0,108220.0,1.46023908]
[1748507936875,0.21669621,108230.0,108220.0,1.46023796]
[1748507937087,0.21669621,108230.0,108220.0,1.46023795]
[1748507937315,0.21633397,108230.0,108220.0,1.43446279]
[1748507937509,0.21633397,108230.0,108220.0,1.46023796]
[1748507938129,0.21633397,108230.0,108220.0,1.46023964]
[1748507938559,0.19633397,108230.0,108220.0,1.46024054]
[1748507938955,0.19633397,108230.0,108220.0,1.45164796]
[1748507939165,0.19633397,108230.0,108220.0,1.46024039]
[1748507940123,0.19633397,108230.0,108220.0,1.46023973]
[1748507940337,0.19633397,108230.0,108220.0,1.46023385]
[1748507940975,0.19633397,108230.0,108220.0,1.46023381]
[1748507941201,0.19633397,108230.0,108220.0,1.45164174]
[1748507941412,0.19633397,108230.0,108220.0,1.46023404]
[1748507941838,0.19633397,108230.0,108220.0,1.45164167]
[1748507942053,0.19633397,108230.0,108220.0,1.46023394]
[1748507942272,0.19633397,108230.0,108220.0,1.46023393]
[1748507942727,0.19633397,108230.0,108220.0,1.45164167]
[1748507942944,0.19633397,108230.0,108220.0,1.46023393]
[1748507943161,0.19633397,108230.0,108220.0,1.45164167]
[1748507943374,0.19633397,108230.0,108220.0,1.46023395]
[1748507943836,0.19633397,108230.0,108220.0,1.46023398]
[1748507944273,0.19633397,108230.0,108220.0,1.46023417]
[1748507944485,0.19633397,108230.0,108220.0,1.45164183]
[1748507944695,0.19633397,108230.0,108220.0,1.44304948]
[1748507944911,0.19618587,108230.0,108220.0,1.46023436]
[1748507945558,0.14088587,108230.0,108220.0,1.46023443]
[1748507945782,0.12088587,108230.0,108220.0,1.46023443]
[1748507946199,0.14758587,108230.0,108220.0,1.46023443]
[1748507946378,0.14758587,108230.0,108220.0,1.4602377]
[1748507946677,0.14758587,108230.0,108220.0,1.46023881]
[1748507946883,0.14758587,108230.0,108220.0,1.46023912]
[1748507947306,0.14758587,108230.0,108220.0,1.46023987]
[1748507947754,0.14758587,108230.0,108220.0,1.43445714]
[1748507947984,0.14758587,108230.0,108220.0,1.46024062]
[1748507948191,0.14758587,108230.0,108220.0,1.46024082]
[1748507948612,0.14744077,108230.0,108220.0,1.43445714]
[1748507948805,0.14744077,108230.0,108220.0,1.4602408]
[1748507949042,0.14744077,108230.0,108220.0,1.46024134]
[1748507949252,0.14744077,108230.0,108220.0,1.46004134]
[1748507949461,0.14744077,108230.0,108220.0,1.46004157]
[1748507949667,0.14744077,108230.0,108220.0,1.45222801]
[1748507949872,0.14744077,108230.0,108220.0,1.44363365]
[1748507950084,0.14744077,108230.0,108220.0,1.45222886]
[1748507950292,0.14744077,108230.0,108220.0,1.45222874]
[1748507950935,0.14744077,108230.0,108220.0,1.45222888]
[1748507951342,0.14744077,108230.0,108220.0,1.44363488]
[1748507951559,0.14744077,108230.0,108220.0,1.45223072]
[1748507951765,0.17494077,108230.0,108220.0,1.4522339]
[1748507951980,0.17494077,108230.0,108220.0,1.45223392]
[1748507952595,0.17494077,108230.0,108220.0,1.45223599]
[1748507952803,0.15494077,108230.0,108220.0,1.45223599]
[1748507953009,0.15494077,108230.0,108220.0,1.42644637]
[1748507953220,0.15494077,108230.0,108220.0,1.45223849]
[1748507953637,0.15494077,108230.0,108220.0,1.42644637]
[1748507953848,0.15494077,108230.0,108220.0,1.45223851]
[1748507954266,0.15494077,108230.0,108220.0,1.45223956]
[1748507954501,0.10074077,108230.0,108220.0,1.45223956]
[1748507954909,0.10074077,108230.0,108220.0,1.45224464]
[1748507955144,0.12694077,108230.0,108220.0,1.44364621]
[1748507955356,0.12694077,108230.0,108220.0,1.45224613]
[1748507956054,0.12694077,108230.0,108220.0,1.44599215]
[1748507956516,0.12694077,108230.0,108220.0,1.42879231]
[1748507956718,0.12694077,108230.0,108220.0,1.44600056]
[1748507956940,0.12694077,108230.0,108220.0,1.44600227]
[1748507957355,0.10074077,108230.0,108220.0,1.44600235]
[1748507957565,0.10074077,108230.0,108220.0,1.44600236]
[1748507957790,0.10074077,108230.0,108220.0,1.43739904]
[1748507958000,0.10074077,108230.0,108220.0,1.44600237]
[1748507958647,0.10074077,108230.0,108220.0,1.4460023]
[1748507958859,0.10074077,108230.0,108220.0,1.43739904]
[1748507959091,0.10074077,108230.0,108220.0,1.44600214]
[1748507959296,0.10074077,108230.0,108220.0,1.42879569]
[1748507959525,0.10074077,108230.0,108220.0,1.44600233]
[1748507959732,0.10074077,108230.0,108220.0,1.43739903]
[1748507959937,0.08074077,108230.0,108220.0,1.44600236]
[1748507960368,0.07295165,108230.0,108220.0,1.07108238]
[1748507960569,0.46543315,108230.0,108220.0,1.42871572]
[1748507960774,0.12755165,108230.0,108220.0,1.44592284]
[1748507960983,0.12755165,108230.0,108220.0,1.44592301]
[1748507961194,0.12755165,108230.0,108220.0,1.44592299]
[1748507962356,0.12755165,108230.0,108220.0,1.44592297]
[1748507962555,0.12755165,108230.0,108220.0,1.44592293]
[1748507962996,0.12755165,108230.0,108220.0,1.44592285]
[1748507963411,0.09965165,108230.0,108220.0,1.44592285]
[1748507964238,0.09965165,108230.0,108220.0,1.44592287]
[1748507964446,0.09965165,108230.0,108220.0,1.42871591]
[1748507964655,0.09965165,108230.0,108220.0,1.44592293]
[1748507964854,0.09965165,108230.0,108220.0,1.44592292]
[1748507965469,0.09965165,108230.0,108220.0,1.4373195]
[1748507965680,0.09965165,108230.0,108220.0,1.44592307]
[1748507965901,0.09965165,108230.0,108220.0,1.44592302]
[1748507966105,0.09965165,108230.0,108220.0,1.44592299]
[1748507966331,0.09965165,108230.0,108220.0,1.04527239]
[1748507966536,0.09965165,108230.0,108220.0,1.07108301]
[1748507966744,0.09965165,108230.0,108220.0,1.44584301]
[1748507966959,0.07965165,108230.0,108220.0,1.44584299]
[1748507967599,0.07965165,108230.0,108220.0,1.44584302]
[1748507968024,0.07965165,108230.0,108220.0,1.42003239]
[1748507968235,0.07965165,108230.0,108220.0,1.44584299]
[1748507968444,0.07965165,108230.0,108220.0,1.42003239]
[1748507968645,0.07965165,108230.0,108220.0,1.44584299]
[1748507969299,0.07965165,108230.0,108220.0,1.44584297]
[1748507969496,0.41753315,108230.0,108220.0,1.44584293]
[1748507969721,0.41753315,108230.0,108220.0,1.44584292]
[1748507969934,0.41753315,108230.0,108220.0,1.44584289]
[1748507971630,0.41753315,108230.0,108220.0,1.42863589]
[1748507971818,0.41753315,108230.0,108220.0,1.44584284]
[1748507972248,0.41753315,108230.0,108220.0,1.43723936]
[1748507972478,0.41753315,108230.0,108220.0,1.44584284]
[1748507972713,0.39083315,108230.0,108220.0,1.44584284]
[1748507972958,0.39083315,108230.0,108220.0,1.4458428]
[1748507973198,0.39083315,108230.0,108220.0,1.43723933]
[1748507973427,0.39083315,108230.0,108220.0,1.42863586]
[1748507973648,0.39083315,108230.0,108220.0,1.0710828]
[1748507973873,0.39083315,108230.0,108220.0,1.44580275]
[1748507974105,0.52267314,108230.0,108220.0,1.44580275]
[1748507975765,0.52267314,108230.0,108220.0,1.44580273]
[1748507975977,0.18479164,108230.0,108220.0,1.44580272]
[1748507976598,0.18479164,108230.0,108220.0,1.4458027]
[1748507976854,0.18479164,108230.0,108220.0,1.44580268]
[1748507977075,0.18479164,108230.0,108220.0,1.41999239]
[1748507977267,0.18479164,108230.0,108220.0,1.44580299]
[1748507978072,0.18479164,108230.0,108220.0,1.4285959]
[1748507978298,0.18479164,108230.0,108220.0,1.42859595]
[1748507979364,0.18479164,108230.0,108220.0,1.42859593]
[1748507980334,0.18479164,108230.0,108220.0,1.42859596]
[1748507980554,0.18479164,108230.0,108220.0,1.41999239]
[1748507980991,0.18479164,108230.0,108220.0,1.42859601]
[1748507981211,0.16479164,108230.0,108220.0,1.44580326]
[1748507981570,0.16479164,108230.0,108220.0,1.41999239]
[1748507981821,0.16479164,108230.0,108220.0,1.44580328]
[1748507981997,0.16479164,108230.0,108220.0,1.44580333]
[1748507982270,0.16468657,108230.0,108220.0,1.44580333]
[1748507982712,0.16468657,108230.0,108220.0,1.44580334]
[1748507982949,0.17410043,108230.0,108220.0,1.44580343]
[1748507983164,0.17410043,108230.0,108220.0,1.42859607]
[1748507983396,0.17410043,108230.0,108220.0,1.44580344]
[1748507983610,0.17410043,108230.0,108220.0,1.44580345]
[1748507984277,0.17410043,108230.0,108220.0,1.44580358]
[1748507984993,0.17410043,108230.0,108220.0,1.44580363]
[1748507985433,0.17410043,108230.0,108220.0,1.44580391]
[1748507985650,0.17410043,108230.0,108220.0,1.44580395]
[1748507985869,0.17410043,108230.0,108220.0,1.44580406]
[1748507986096,0.17410043,108230.0,108220.0,1.43720021]
[1748507986347,0.17410043,108230.0,108220.0,1.44580413]
[1748507986801,0.17410043,108230.0,108220.0,1.44580437]
[1748507987474,0.17410043,108230.0,108220.0,1.43720039]
[1748507987692,0.17410043,108230.0,108220.0,1.44580439]
[1748507988136,0.17410043,108230.0,108220.0,1.43720061]
[1748507988390,0.17410043,108230.0,108220.0,1.43720055]
[1748507988642,0.17410043,108230.0,108220.0,1.41999239]
[1748507988854,0.15410043,108230.0,108220.0,1.41999239]
[1748507989079,0.15410043,108230.0,108220.0,1.13399239]
[1748507989314,0.15410043,108230.0,108220.0,1.41987239]
[1748507989993,0.14705844,108230.0,108220.0,1.42847693]
[1748507990241,0.14705844,108230.0,108220.0,1.41987239]
[1748507990639,0.14705844,108230.0,108220.0,1.44568664]
[1748507991071,0.14688432,108230.0,108220.0,1.43708188]
[1748507991295,0.14688432,108230.0,108220.0,1.43708181]
[1748507991515,0.14688432,108230.0,108220.0,1.44568653]
[1748507991728,0.14688432,108230.0,108220.0,1.4284771]
[1748507991982,0.14688432,108230.0,108220.0,1.43708182]
[1748507992370,0.14688432,108230.0,108220.0,1.4284771]
[1748507992563,0.14688432,108230.0,108220.0,1.44568653]
[1748507992758,0.14688432,108230.0,108220.0,1.41987239]
[1748507993338,0.14688432,108230.0,108220.0,1.4284771]
[1748507993545,0.14688432,108230.0,108220.0,1.4283171]
[1748507993763,0.14688432,108230.0,108220.0,1.41971239]
[1748507994162,0.14688432,108230.0,108220.0,1.44552656]
[1748507994748,0.14688432,108230.0,108220.0,1.44552646]
[1748507994947,0.48476582,108230.0,108220.0,1.44552646]
[1748507995168,0.48476582,108230.0,108220.0,1.41971239]
[1748507995700,0.48476582,108230.0,108220.0,1.42831707]
[1748507995901,0.48476582,108230.0,108220.0,1.41971239]
[1748507996133,0.46476582,108230.0,108220.0,1.41971239]
[1748507996337,0.46476582,108230.0,108220.0,1.43692175]
[1748507996689,0.46476582,108230.0,108220.0,1.41971239]
[1748507997373,0.46476582,108230.0,108220.0,1.43692177]
[1748507997538,0.46476582,108230.0,108220.0,1.41971239]
[1748507998372,3.84020708,108250.0,108240.0,0.18477457]
[1748507998530,3.84944418,108250.0,108240.0,1.82332602]
[1748507998609,3.87715676,108250.0,108240.0,2.16120769]
[1748507998824,3.87715676,108250.0,108240.0,2.1808733]
[1748507998825,3.85868145,108250.0,108240.0,2.1808733]
[1748507998966,3.85868145,108250.0,108240.0,1.8527741]
[1748507998967,3.84020708,108250.0,108240.0,1.8527741]
[1748507999251,3.84020708,108250.0,108240.0,2.23770343]
[1748507999449,3.84020708,108250.0,108240.0,2.21663882]
[1748507999450,3.81805274,108250.0,108240.0,2.21663882]
[1748507999661,3.81805274,108250.0,108240.0,2.61663882]
[1748508000063,3.81805274,108250.0,108240.0,2.56422395]
[1748508000465,3.81805274,108250.0,108240.0,2.56722395]
[1748508000638,3.81805274,108250.0,108240.0,2.55004092]
[1748508001044,3.81805274,108250.0,108240.0,2.54704092]
[1748508001313,3.81805274,108250.0,108240.0,2.57022369]
[1748508001487,3.81805274,108250.0,108240.0,2.55304092]
[1748508002064,3.81805274,108250.0,108240.0,2.57022369]
[1748508002273,3.81805274,108250.0,108240.0,2.55304092]
[1748508002873,3.81805274,108250.0,108240.0,2.5702237]
[1748508003263,3.79805274,108250.0,108240.0,2.55174369]
[1748508003704,3.79805274,108250.0,108240.0,2.84584279]
[1748508003905,3.79805274,108250.0,108240.0,2.84577368]
[1748508004323,3.79805274,108250.0,108240.0,2.84577096]
[1748508004725,3.79805274,108250.0,108240.0,2.84576822]
[1748508005347,3.79805274,108250.0,108240.0,2.82866092]
[1748508005570,3.79805274,108250.0,108240.0,2.84574466]
[1748508006182,3.79805274,108250.0,108240.0,2.82866092]
[1748508006602,3.79805274,108250.0,108240.0,2.22849582]
[1748508006866,3.79805274,108250.0,108240.0,2.82866092]
[1748508008819,3.79805274,108250.0,108240.0,2.84573755]
[1748508009025,3.79805274,108250.0,108240.0,2.84573337]
[1748508009204,3.79805274,108250.0,108240.0,2.82866092]
[1748508010333,3.77805274,108250.0,108240.0,2.82866092]
[1748508011148,3.77805274,108250.0,108240.0,2.84572874]
[1748508011280,3.77805274,108250.0,108240.0,2.84572348]
[1748508011467,3.77805274,108250.0,108240.0,2.82866092]
[1748508012328,3.77805274,108250.0,108240.0,2.84572348]
[1748508012533,3.77805274,108250.0,108240.0,2.82866092]
[1748508012972,3.77805274,108250.0,108240.0,2.24555242]
[1748508013134,3.77805274,108250.0,108240.0,2.84571752]
[1748508013829,3.77805274,108250.0,108240.0,2.84570256]
[1748508014459,3.77805274,108250.0,108240.0,2.84570257]
[1748508014648,3.77805274,108250.0,108240.0,2.84569993]
[1748508015746,3.77805274,108250.0,108240.0,2.84569985]
[1748508015885,3.77805274,108250.0,108240.0,2.82866092]
[1748508016084,3.77805274,108250.0,108240.0,2.84570237]
[1748508016301,3.77805274,108250.0,108240.0,2.84570236]
[1748508017149,3.77805274,108250.0,108240.0,2.82866092]
[1748508017351,3.74998863,108250.0,108240.0,2.82866092]
[1748508017569,3.74984053,108250.0,108240.0,2.82866092]
[1748508017770,3.74984053,108250.0,108240.0,2.84572383]
[1748508018185,3.74984053,108250.0,108240.0,2.82866092]
[1748508018397,3.74984053,108250.0,108240.0,2.84572305]
[1748508018594,3.74984053,108250.0,108240.0,2.84572291]
[1748508019214,3.74984053,108250.0,108240.0,2.84572303]
[1748508019436,3.74984053,108250.0,108240.0,2.84572308]
[1748508019829,3.74984053,108250.0,108240.0,2.84572859]
[1748508020670,3.74984053,108250.0,108240.0,2.94306858]